Cogmind - Beta 11.1 *** ADVENTURER MODE // 2022.11.29 @ 20:50:15 Player: TheDishwasher Result: Destroyed by X-77 Beamer with Gatling Laser Performance ------------- Evolutions (5) 2500 Regions Visited (11) 2200 Robots Destroyed (185) 925 Value Destroyed (5091) 5091 Prototype IDs (12) 240 Alien Tech Used (0) 0 Bonus (1534) 1534 TOTAL SCORE: 12490 Bonus ------- High Alert Combat Kills 536 Follower Combat Kills 142 Entered Garrisons 200 Entered DSFs 500 Aligned with FarCom 300 Friendly Fire -144 Cogmind --------- Core Integrity 0/1000 Matter 267/300 Energy 100/100 System Corruption 15% Temperature Cool (12) Movement Core (50) Location -5/Factory Parts ------- > --- POWER (3) -------- (None) > --- PROPULSION (5) --- (None) > --- UTILITY (5) ------ Targeting Computer Core Analyzer Hacking Suite > --- WEAPON (4) ------- (None) > --- INVENTORY (5) ---- Thermic Laser Thermic Laser Peak State ------------ > --- POWER ------------ Light Angular Momentum Engine Micro Fission Core Micro Fission Core > --- PROPULSION ------- Carbon-fiber Leg Flexi-carbon Leg Flexi-carbon Leg Flexi-carbon Leg Flexi-carbon Leg > --- UTILITY ---------- Advanced Heat Sink Huge Storage Unit Gravity Neutralizer Transmission Jammer Hacking Suite > --- WEAPON ----------- Heavy EM Shotgun Thermic Laser Force Rifle Missile Launcher > --- INVENTORY -------- Advanced Treads Carbon-fiber Leg Antigrav System Large Storage Unit Improved Signal Interpreter Transmission Jammer Graphene Brace Improved Shock Absorption System Authchip [R/Combat] Authchip [R/Combat] Authchip [R/Combat] Authchip [Device] Authchip [Weapon] Tesla Rifle Disruptor Cannon Enhanced Autogun Gauss Rifle Coil Gun Coil Gun Heavy Machine Gun Enhanced Gauss Cannon Proton Missile Launcher Missile Launcher Improved Remote Datajack Katana [Rating: 88] Favorites ----------- Power Reinforced Deuterium Engine Engine Reinforced Deuterium Engine Power Core Light Nuclear Core Reactor Light Antimatter Reactor Propulsion Flexi-carbon Leg Treads Armored Treads Leg Flexi-carbon Leg Wheel Wheel Hover Unit Antigrav System Flight Unit Nuclear Pulse Thruster Utility Hacking Suite Device Improved Heat Sink Storage Large Storage Unit Processor Signal Interpreter Hackware Hacking Suite Protection Improved Medium Armor Plating Weapon Enhanced Autogun Energy Gun Medium Laser Energy Cannon Plasma Cannon Ballistic Gun Enhanced Autogun Ballistic Cannon Improved Light Cannon Launcher Missile Launcher Special Weapon Remote Datajack Slashing Weapon Katana Build | -11 -10 -10 -10 -9 -8 -8 -8 -8 -6 -6 -5 ------- Run | Scr Mat Min Exi Min Mat Sto Gar Rec Fac DSF Fac Slots Evolved 10 | . . . . . 4 . . . 4 . 2 Power 2 | . . . . . 1 . . . 1 . . Propulsion 3 | . . . . . 1 . . . 1 . 1 Utility 3 | . . . . . 1 . . . 1 . 1 Weapon 2 | . . . . . 1 . . . 1 . . Parts Attached 208 | 8 25 4 . 11 43 29 17 1 16 6 48 Power 28 | 1 5 . . 1 8 1 2 . 2 1 7 Engine 16 | 1 5 . . 1 6 1 . . . 1 1 Core 11 | . . . . . 2 . 2 . 2 . 5 Reactor 1 | . . . . . . . . . . . 1 Propulsion 64 | 3 9 1 . 1 14 8 6 . 6 . 16 Treads 18 | . 2 . . 1 11 2 . . . . 2 Leg 32 | 1 5 . . . . 6 6 . 6 . 8 Wheel 5 | 2 2 1 . . . . . . . . . Hover 4 | . . . . . . . . . . . 4 Flight 5 | . . . . . 3 . . . . . 2 Utility 36 | 1 3 . . 2 8 5 1 1 1 3 11 Device 26 | 1 2 . . 2 5 5 1 . . 3 7 Storage 2 | . . . . . 1 . . 1 . . . Processor 3 | . 1 . . . . . . . . . 2 Hackware 1 | . . . . . 1 . . . . . . Protection 4 | . . . . . 1 . . . 1 . 2 Artifact . | . . . . . . . . . . . . Weapon 80 | 3 8 3 . 7 13 15 8 . 7 2 14 Energy Gun 24 | 2 2 . . 2 7 3 2 . 1 1 4 Energy Cannon 3 | . . . . . 1 1 1 . . . . Ballistic Gun 24 | 1 4 2 . . 3 2 3 . 3 1 5 Ballistic Cannon 4 | . . . . 2 . . . . . . 2 Launcher 14 | . 2 1 . 3 . 4 1 . 1 . 2 Special Weapon 9 | . . . . . 2 4 1 . 1 . 1 Impact Weapon . | . . . . . . . . . . . . Slashing Weapon 2 | . . . . . . 1 . . 1 . . Piercing Weapon . | . . . . . . . . . . . . Special Melee Weapon . | . . . . . . . . . . . . Unidentified Prototypes 7 | . . . . 1 4 . . . . . 2 Parts Lost 49 | . . . . . 1 1 . . . 1 46 Power 10 | . . . . . 1 . . . . 1 8 Propulsion 17 | . . . . . . . . . . . 17 Utility 9 | . . . . . . . . . . . 9 Weapon 13 | . . . . . . 1 . . . . 12 Highest Loss Streak 17 | . . . . . 1 1 . . . 1 17 To Critical Strikes . | . . . . . . . . . . . . Average Slot Usage (%) 93 | . 97 100 100 96 94 95 98 100 73 94 69 Engine 10 | . 12 14 14 14 11 15 9 9 1 2 2 Core 3 | . . . . . 5 . 7 9 8 12 4 Treads 7 | . 8 . . 5 23 15 . . . . 2 Leg 11 | . 12 . . . . 10 27 27 24 26 13 Wheel 6 | . 7 28 28 22 1 . . . . . . Device 11 | . 14 14 14 13 12 8 9 9 6 12 9 Storage 4 | . . . . . 4 9 9 9 6 6 2 Processor 4 | . 13 14 14 11 . . . . . . 1 Hackware 4 | . . . . . 6 9 9 9 6 6 5 Energy Gun 10 | . 13 14 14 4 11 7 12 9 1 6 7 Energy Cannon 3 | . . . . . 9 4 1 9 . . . Ballistic Gun 8 | . 14 3 14 7 1 6 11 9 7 12 5 Ballistic Cannon 1 | . . . . 12 3 . . . . . . Launcher 1 | . . 10 . 2 . 3 . . . . 1 Naked Turns . | . . . . . . . . . . . . Heaviest Build 125 | 7 9 12 9 16 64 70 54 114 107 117 125 Greatest Support 112 | 20 46 26 26 26 70 70 40 40 80 80 112 Greatest Overweight (x) 10 | . 2 . . . 10 4 1 2 2 1 6 Average Overweight (x) . | . . . . . . . 1 1 1 1 . Largest Inventory Capacity 25 | 5 5 5 5 5 15 15 15 25 25 25 25 Average Capacity 12 | 5 5 5 5 5 9 15 15 22 25 25 15 Most Carried 25 | 5 5 5 5 5 15 15 15 19 25 25 25 Average Carried 10 | 3 4 4 4 4 8 14 14 16 22 24 13 Final Capacity 25 | 5 5 5 5 5 15 15 15 25 25 25 5 Final Carried 25 | 5 5 5 4 5 14 13 15 19 22 25 2 Class Distribution -------------------- 25% | Scavenger-Mutant 18% | Scavenger-Skirmisher 18% | Hacker-Skirmisher 18% | Hacker-Mutant 15% | Mutant Dominant Class ---------------- Mutant | -10/Materials Mutant | -10/Mines Scavenger-Mutant | -10/Exiles Scavenger-Mutant | -9/Mines Hacker-Skirmisher | -8/Materials Hacker-Mutant | -8/Storage Scavenger-Skirmisher | -8/Garrison Scavenger-Skirmisher | -8/Recycling Hacker-Mutant | -6/Factory Hacker-Skirmisher | -6/DSF Hacker-Mutant | -5/Factory Resources | -11 -10 -10 -10 -9 -8 -8 -8 -8 -6 -6 -5 ----------- Run | Scr Mat Min Exi Min Mat Sto Gar Rec Fac DSF Fac Matter Collected 4394 | 288 348 69 . 163 872 779 335 126 . 441 973 Remotely . | . . . . . . . . . . . . Salvage Created 6559 | 154 711 198 . 157 1326 1689 342 421 . 384 1177 Parts 390 | 13 43 16 . 7 78 109 20 38 . 23 43 Haulers Intercepted 12 | . 2 . . . 6 4 . . . . . Recyclers Shooed 3 | . . . . . 1 1 . 1 . . . Parts Field Recycled . | . . . . . . . . . . . . Retrieved Matter . | . . . . . . . . . . . . Parts Self-Destructed . | . . . . . . . . . . . . Prevented . | . . . . . . . . . . . . Kills | -11 -10 -10 -10 -9 -8 -8 -8 -8 -6 -6 -5 ------- Run | Scr Mat Min Exi Min Mat Sto Gar Rec Fac DSF Fac Combat Hostiles Destroyed 131 | 1 13 5 . . 21 28 12 21 . 6 24 Guns 79 | 1 12 3 . . 10 13 6 11 . 6 17 Cannons 22 | . . . . . 7 4 . 9 . . 2 AOE 28 | . 1 2 . . 4 10 6 1 . . 4 Classes Destroyed 16 | 3 3 3 . . 2 . 1 1 . 1 2 Worker 14 | 1 1 . . 1 2 8 . . . . 1 Builder 8 | . 2 . . 2 1 3 . . . . . Tunneler 5 | 4 . . . 1 . . . . . . . Hauler 12 | . 2 . . . 6 4 . . . . . Recycler 7 | . . 1 . 1 1 2 . 2 . . . Operator 1 | . . . . . 1 . . . . . . Drone 21 | . . . . . . . . 21 . . . Watcher 7 | . 1 . . . 4 1 . . . . 1 Swarmer 24 | . . 3 . . 7 4 4 . . . 6 Grunt 53 | 1 13 . . . 9 17 4 . . 3 6 Brawler 1 | . . . . . . . . . . . 1 Sentry 16 | . . 2 . . 4 7 . . . . 3 Specialist 3 | . . . . . . . 1 . . 2 . Hunter 9 | . . . . . 1 . 3 1 . . 4 Programmer 4 | . . . . . . . . . . . 4 Heavy 1 | . . . . . . . . . . 1 . Best Kill Streak 10 | 6 6 3 . 2 6 10 9 3 . 3 6 Combat Bots Only 9 | 1 4 3 . . 5 5 9 2 . 3 5 Max Kills in Single Turn 4 | 1 2 2 . 1 3 4 3 2 . 1 3 Gunslinging 1 | . . . . . . . . . . . 1 Exploded 3 | . 1 2 . . 3 3 2 1 . . 2 Melee . | . . . . . . . . . . . . Uniques/NPCs Destroyed . | . . . . . . . . . . . . Combat | -11 -10 -10 -10 -9 -8 -8 -8 -8 -6 -6 -5 -------- Run | Scr Mat Min Exi Min Mat Sto Gar Rec Fac DSF Fac Damage Taken 8384 | 17 482 125 . . 599 1220 507 32 . 850 4552 Core 1643 | . 58 39 . . 127 230 154 . . 29 1006 Absorbed by Shields . | . . . . . . . . . . . . Regen/Repaired (Parts) 224 | . . . . . 185 39 . . . . . Core Remaining (%) 66 | 100 . . . 61 . . . 7 . 96 . Volleys Fired 386 | 8 53 15 . 13 74 82 25 30 . 19 67 Largest 4 | 2 2 2 . 2 3 3 3 3 . 4 4 Hottest 251 | 70 80 83 . 79 195 173 140 138 . 209 251 Shots Fired 865 | 16 104 24 . 26 167 159 54 80 . 61 174 Gun 635 | 16 102 22 . 13 65 109 49 50 . 61 148 Cannon 185 | . . . . 13 89 32 . 30 . . 21 Launcher 23 | . 2 2 . . 4 8 4 . . . 3 Special 22 | . . . . . 9 10 1 . . . 2 Kinetic 390 | 8 52 7 . 24 61 62 25 30 . 38 83 Thermal 292 | 8 50 15 . . 61 43 22 . . 23 70 Explosive 23 | . 2 2 . . 4 8 4 . . . 3 Electromagnetic 138 | . . . . 2 32 36 2 50 . . 16 Robot Hit Streak 28 | 13 17 14 . 14 17 15 18 3 . 24 28 Robot Miss Streak 7 | . 2 2 . 1 4 3 3 7 . 2 5 Penetration Max 1 | . . . . . . 1 . . . . 1 Secondary Targets 8 | . 2 . . . . 2 . . . 1 3 Max Gunslinging Chain 1 | . 1 . . . . 1 . . . 1 1 Shots Hit Robots 614 | 13 77 17 . 24 105 126 37 31 1 51 132 Core Hits 314 | 8 37 10 . 7 60 72 25 22 . 20 53 Critical Kills 3 | . . . . . . 1 . . . . 2 Critical Parts Destroyed 1 | . . . . . . . . . . 1 . Critical Strikes 21 | 1 3 1 . . 3 4 . . . 1 8 Burn 8 | 1 3 1 . . 1 . . . . . 2 Destroy 4 | . . . . . . 1 . . . 1 2 Blast 5 | . . . . . 2 . . . . . 3 Corrupt 3 | . . . . . . 2 . . . . 1 Sever 1 | . . . . . . 1 . . . . . Melee Attacks 7 | . . . . . . 6 . . 1 . . Impact . | . . . . . . . . . . . . Slashing 7 | . . . . . . 6 . . 1 . . Piercing . | . . . . . . . . . . . . Sneak Attacks 3 | . . . . . . 2 . . 1 . . Combat Hostiles . | . . . . . . . . . . . . Follow-up Attacks . | . . . . . . . . . . . . Damage Inflicted 13928 | 143 926 261 . 356 2313 3720 1129 968 54 900 3158 Guns 8178 | 143 823 171 . 106 1050 1709 563 416 . 890 2307 Cannons 2831 | . . . . 250 996 603 . 459 . . 523 Explosions 2569 | . 103 90 . . 243 1148 566 91 . . 328 Melee 314 | . . . . . . 260 . . 54 . . Ramming 36 | . . . . . 24 . . 2 . 10 . Kinetic 5041 | 40 343 32 . 328 699 1008 274 182 . 549 1586 Thermal 4331 | 103 480 139 . . 816 1153 251 91 . 341 957 Explosive 1973 | . 103 90 . . 161 725 566 . . . 328 Electromagnetic 2233 | . . . . 28 613 574 38 693 . . 287 Impact . | . . . . . . . . . . . . Slashing 314 | . . . . . . 260 . . 54 . . Piercing . | . . . . . . . . . . . . Highest Corruption 15 | . . . . . . . . . . . 15 Average Corruption 5 | . . . . . . . . . . . 5 Corruption Purged . | . . . . . . . . . . . . Corruption Blocked 9 | . . . . . . . . . . . 9 Effects 26 | . . . . . . . . . . . 26 Message Errors 3 | . . . . . . . . . . . 3 Matter Fused 6 | . . . . . . . . . . . 6 Heat Flow Errors 3 | . . . . . . . . . . . 3 Energy Discharges 4 | . . . . . . . . . . . 4 Data Loss (minor) 5 | . . . . . . . . . . . 5 Alerts 2 | . . . . . . . . . . . 2 Weapon Failures 3 | . . . . . . . . . . . 3 Overload Shots . | . . . . . . . . . . . . Overflow Damage 234 | . . . . 3 36 70 . 86 24 . 15 Projectiles 118 | . . . . 3 14 . . 86 . . 15 Explosions 46 | . . . . . 22 24 . . . . . Melee 70 | . . . . . . 46 . . 24 . . Knockbacks 12 | . . . . 4 3 . . . . . 5 Impact . | . . . . . . . . . . . . Kinetic 11 | . . . . 3 3 . . . . . 5 Secondary 1 | . . . . 1 . . . . . . . Self-Inflicted Damage 188 | . . . . . 24 99 33 32 . . . Shots 7 | . . . . . 1 4 1 1 . . . Rammed 3 | . . . . . 3 . . . . . . Targets Rammed 5 | . . . . . 3 . . 1 . 1 . Kicked 2 | . . . . . . . . 1 . 1 . Crushed . | . . . . . . . . . . . . Highest Temperature 869 | 90 200 130 . 42 677 512 155 190 . 261 869 Average Temperature 134 | 43 75 45 . 12 148 186 77 47 . 67 220 Received Heat Transfer 3180 | 12 348 18 . . 360 891 135 . . 126 1290 Effects 73 | . . . . . 16 19 . . . . 38 Shutdowns 22 | . . . . . 9 6 . . . . 7 Energy Bleed 7 | . . . . . 1 3 . . . . 3 Interference 12 | . . . . . . 5 . . . . 7 Matter Decay 5 | . . . . . 2 2 . . . . 1 Short Circuit 5 | . . . . . 1 2 . . . . 2 Damage (minor) 8 | . . . . . 2 1 . . . . 5 Damage (major) 12 | . . . . . . . . . . . 12 Damage (core) 2 | . . . . . 1 . . . . . 1 Siege Activations . | . . . . . . . . . . . . Robots Corrupted 1 | . . . . . . 1 . . . . . Combat Hostiles 1 | . . . . . . 1 . . . . . Parts Fried 7 | . . . . . . 2 . 4 . . 1 Impact Corruptions . | . . . . . . . . . . . . Robots Melted 1 | . . . . . . . . . . . 1 Combat Hostiles 1 | . . . . . . . . . . . 1 Parts Melted 13 | 1 2 . . . 2 1 2 . . . 5 Heat Transferred 9509 | 370 1628 481 . . 1705 1846 592 200 . 692 1995 Parts Sabotaged . | . . . . . . . . . . . . Parts Stolen . | . . . . . . . . . . . . Parts Stripped . | . . . . . . . . . . . . Power Chain Reactions 7 | . . . . . 3 3 . 1 . . . Missiles Intercepted . | . . . . . . . . . . . . Alert | -11 -10 -10 -10 -9 -8 -8 -8 -8 -6 -6 -5 ------- Run | Scr Mat Min Exi Min Mat Sto Gar Rec Fac DSF Fac Peak Influence 988 | 45 172 187 . 36 495 752 873 462 988 739 474 Initial 985 | . 25 . . . 1 61 368 336 985 609 331 Average 324 | 16 67 99 . 14 313 442 684 348 985 682 242 Maximum Alert Level 3 | . . . . . 2 3 3 2 3 3 2 Low Security (%) 35 | 100 100 100 . 100 9 24 . . . . 34 Level 1 34 | . . . . . 77 15 9 71 . . 51 Level 2 18 | . . . . . 13 51 24 28 . 52 14 Level 3 11 | . . . . . . 9 65 . 100 47 . Level 4 . | . . . . . . . . . . . . Level 5 . | . . . . . . . . . . . . High Security . | . . . . . . . . . . . . Max Security . | . . . . . . . . . . . . Squads Dispatched 30 | . 6 . . 1 6 6 . . . . 11 Investigation 12 | . 6 . . 1 3 1 . . . . 1 Extermination 3 | . . . . . . . . . . . 3 Reinforcement 9 | . . . . . 2 5 . . . . 2 Assault 1 | . . . . . . . . . . . 1 Garrison 5 | . . . . . 1 . . . . . 4 Intercept . | . . . . . . . . . . . . Searches Triggered 1 | . . . . . . . . . . . 1 Construction Impeded 4 | . . . . . 1 2 . . . . 1 Haulers Reinforced . | . . . . . . . . . . . . Active Scanning Responses . | . . . . . . . . . . . . Cargo Convoy Interrupts 1 | . . . . . . . . . . . 1 Stealth | -11 -10 -10 -10 -9 -8 -8 -8 -8 -6 -6 -5 --------- Run | Scr Mat Min Exi Min Mat Sto Gar Rec Fac DSF Fac Distress Signals 5 | . 2 . . . 2 1 . . . . . Communications Jammed 1 | . . . . . . . . . . 1 . Distress Signals . | . . . . . . . . . . . . Times Spotted 182 | 1 15 5 . 3 30 33 15 38 . 9 33 Peak Tracking Total 7 | 1 4 3 . 2 6 6 7 3 . 4 6 Tactical Retreats 5 | . 1 . . . 1 . . . . . 3 Traps | -11 -10 -10 -10 -9 -8 -8 -8 -8 -6 -6 -5 ------- Run | Scr Mat Min Exi Min Mat Sto Gar Rec Fac DSF Fac Traps Triggered 12 | . 3 . . . 1 1 1 . 3 1 2 Indirectly . | . . . . . . . . . . . . Trap Hack Attempts . | . . . . . . . . . . . . Triggered . | . . . . . . . . . . . . Disarmed 5 | . 5 . . . . . . . . . . Reprogrammed . | . . . . . . . . . . . . Reused . | . . . . . . . . . . . . Traps Extracted . | . . . . . . . . . . . . Installed . | . . . . . . . . . . . . Triggered 3 | . . . . . . . . . . . 3 Machines | -11 -10 -10 -10 -9 -8 -8 -8 -8 -6 -6 -5 ---------- Run | Scr Mat Min Exi Min Mat Sto Gar Rec Fac DSF Fac Machines Disabled 19 | . . 2 . . 5 5 . 5 . . 2 Max in Single Turn 2 | . . 2 . . 2 2 . 1 . . 1 Garrison Access 1 | . . . . . . . . . . . 1 Machines Sabotaged . | . . . . . . . . . . . . Garrisons Compromised 1 | . . . . . . . . . . . 1 Overloaded Fab Kills . | . . . . . . . . . . . . Hacking | -11 -10 -10 -10 -9 -8 -8 -8 -8 -6 -6 -5 --------- Run | Scr Mat Min Exi Min Mat Sto Gar Rec Fac DSF Fac Machines Accessed 40 | . 10 . 4 3 10 5 . 3 1 . 4 Terminals 23 | . 7 . . 1 6 3 . 3 1 . 2 Fabricators . | . . . . . . . . . . . . Repair Stations 4 | . 1 . . . 2 1 . . . . . Recycling Units 4 | . 2 . . . 1 . . . . . 1 Scanalyzers 1 | . . . . . 1 . . . . . . Garrison Access 2 | . . . . . . 1 . . . . 1 Total Hacks 159 | . 31 . 49 4 30 16 . 10 1 . 18 Successful 125 | . 20 . 49 4 18 12 . 8 1 . 13 Failed 34 | . 11 . . . 12 4 . 2 . . 5 Catastrophic 2 | . . . . . . 1 . . . . 1 Database Lockouts . | . . . . . . . . . . . . Manual 1 | . . . 1 . . . . . . . . Terminals 81 | . 28 . . 2 19 9 . 10 1 . 12 Fabricators . | . . . . . . . . . . . . Repair Stations 14 | . 1 . . . 7 6 . . . . . Recycling Units 8 | . 2 . . . 2 . . . . . 4 Scanalyzers 2 | . . . . . 2 . . . . . . Garrison Access 3 | . . . . . . 1 . . . . 2 Terminal Hacks 105 | . 17 . 49 4 11 5 . 8 1 . 10 Record 61 | . 7 . 49 1 3 . . 1 . . . Part Schematic 6 | . . . . . . . . 3 . . 3 Robot Schematic 1 | . . . . . . 1 . . . . . Robot Analysis 2 | . 1 . . . . . . . . . 1 Prototype ID Bank 2 | . 1 . . . . . . . . . 1 Open Door 3 | . . . . 2 . 1 . . . . . Open DSF 2 | . . . . . . . . . 1 . 1 Level Access Points 2 | . 1 . . . 1 . . . . . . Emergency Access Points 2 | . . . . . 1 . . . . . 1 Garrison Index 1 | . . . . . . 1 . . . . . Alert Level 3 | . 2 . . . 1 . . . . . . Locate Traps 2 | . 1 . . . . 1 . . . . . Disarm Traps 1 | . 1 . . . . . . . . . . Dispatch Records 4 | . . . . . 1 . . 1 . . 2 Maintenance Status 1 | . . . . . . . . . . . 1 Security Status 1 | . . . . . . . . 1 . . . Assault Status 2 | . . . . . 1 . . 1 . . . Recall Extermination 1 | . . . . . . 1 . . . . . Hauler Manifests 2 | . 1 . . . 1 . . . . . . Registered Components 2 | . . . . . 1 . . 1 . . . Zone Layout 4 | . 2 . . 1 1 . . . . . . Fabricator Hacks . | . . . . . . . . . . . . Repair Station Hacks 12 | . 1 . . . 5 6 . . . . . Scan Component 7 | . 1 . . . 3 3 . . . . . Repair 5 | . . . . . 2 3 . . . . . Recycling Unit Hacks 7 | . 2 . . . 2 . . . . . 3 Report Inventory 4 | . 2 . . . 1 . . . . . 1 Retrieve Matter 2 | . . . . . 1 . . . . . 1 Retrieve Components 1 | . . . . . . . . . . . 1 Scanalyzer . | . . . . . . . . . . . . Garrison Access Hacks 1 | . . . . . . 1 . . . . . Unlock Access 1 | . . . . . . 1 . . . . . Unauthorized Hacks . | . . . . . . . . . . . . Terminals . | . . . . . . . . . . . . Fabricators . | . . . . . . . . . . . . Repair Stations . | . . . . . . . . . . . . Recycling Units . | . . . . . . . . . . . . Scanalyzers . | . . . . . . . . . . . . Garrison Access . | . . . . . . . . . . . . Data Cores Recovered . | . . . . . . . . . . . . Used . | . . . . . . . . . . . . Hacking Detections 20 | . 7 . . . 7 1 . 3 1 . 1 Full Trace Events 12 | . 5 . . . 4 1 . 2 . . . Feedback Events . | . . . . . . . . . . . . Feedback Blocked . | . . . . . . . . . . . . Robot Schematics Acquired 1 | . . . . . . 1 . . . . . Robots Built . | . . . . . . . . . . . . Authchips . | . . . . . . . . . . . . Time . | . . . . . . . . . . . . Total Robot Build Rating . | . . . . . . . . . . . . Part Schematics Acquired 6 | . . . . . . . . 3 . . 3 Parts Built . | . . . . . . . . . . . . Authchips . | . . . . . . . . . . . . Time . | . . . . . . . . . . . . Total Part Build Rating . | . . . . . . . . . . . . Parts Repaired 4 | . . . . . 2 2 . . . . . Time 234 | . . . . . 74 160 . . . . . Parts Recycled . | . . . . . . . . . . . . Recycled Matter . | . . . . . . . . . . . . Retrieved Matter . | . . . . . . . . . . . . Retrieved Components 1 | . . . . . . . . . . . 1 Parts Scanalyzed . | . . . . . . . . . . . . Part Schematics Acquired . | . . . . . . . . . . . . Parts Damaged . | . . . . . . . . . . . . Bothacking | -11 -10 -10 -10 -9 -8 -8 -8 -8 -6 -6 -5 ------------ Run | Scr Mat Min Exi Min Mat Sto Gar Rec Fac DSF Fac Used RIF Installer . | . . . . . . . . . . . . Robots Hacked 7 | . . . . . 3 2 1 . . . 1 Non-combat 6 | . . . . . 3 2 . . . . 1 Combat 1 | . . . . . . . 1 . . . . Robot Hacks Applied 12 | . . . . . 6 4 1 . . . 1 parse_system 2 | . . . . . 1 . 1 . . . . no_distress 6 | . . . . . 3 2 . . . . 1 find_station 1 | . . . . . 1 . . . . . . check_alert 3 | . . . . . 1 2 . . . . . Relay Couplers Released 1 | . . . . . . . . . . . 1 Machine Destruction 1 | . . . . . . . . . . . 1 Fabnet Peak Effective % . | . . . . . . . . . . . . Robots Rewired 6 | . . . . . . . 6 . . . . Allies Hacked . | . . . . . . . . . . . . Hacks Repelled . | . . . . . . . . . . . . Allies | -11 -10 -10 -10 -9 -8 -8 -8 -8 -6 -6 -5 -------- Run | Scr Mat Min Exi Min Mat Sto Gar Rec Fac DSF Fac Total Allies 9 | . . . . 3 . . 6 . . . . Largest Group 5 | . . . . 3 1 . 5 5 . . . Highest-Rated Group 117 | . . . . 40 16 . 117 117 . . . Highest-Rated Ally 24 | . . . . 16 16 . 24 24 . . . Total Orders 6 | . . . . 1 1 . 3 1 . . . GUARD 6 | . . . . 1 1 . 3 1 . . . Ally Attacks 106 | . . . . 12 9 . 8 77 . . . Total Damage 1372 | . . . . 142 49 . 144 1037 . . . Kills 34 | . . . . 2 2 . 2 28 . . . Allies Corrupted . | . . . . . . . . . . . . Allies Melted . | . . . . . . . . . . . . Intel | -11 -10 -10 -10 -9 -8 -8 -8 -8 -6 -6 -5 ------- Run | Scr Mat Min Exi Min Mat Sto Gar Rec Fac DSF Fac Robot Analysis Total 2 | . 1 . . . . . . . . . 1 Derelict Logs Recovered 3 | . . 1 . 2 . . . . . . . Drone Launches . | . . . . . . . . . . . . Drone Recoveries . | . . . . . . . . . . . . Exploration | -11 -10 -10 -10 -9 -8 -8 -8 -8 -6 -6 -5 ------------- Run | Scr Mat Min Exi Min Mat Sto Gar Rec Fac DSF Fac Turns Passed 10235 | 120 1208 318 1213 643 1660 1085 860 1243 255 303 1327 Spaces Moved 6172 | 120 909 325 1348 581 805 351 394 478 108 117 636 Core 111 | 58 5 . . . . . . . . . 48 Treads 1295 | . 171 . . . 707 215 . . . . 202 Legs 1943 | . 365 . . . . 136 394 478 108 117 345 Wheels 2769 | 62 368 325 1348 581 85 . . . . . . Hover 37 | . . . . . . . . . . . 37 Flight 17 | . . . . . 13 . . . . . 4 Fastest Speed 40 | 50 80 80 90 90 130 158 186 190 190 190 40 Average Speed 136 | 65 111 83 90 93 162 182 188 240 201 190 161 Slowest Speed 755 | 80 160 90 90 100 755 450 190 260 260 190 350 Overloaded Moves . | . . . . . . . . . . . . Propulsion Burnouts . | . . . . . . . . . . . . Robots Hopped . | . . . . . . . . . . . . Cave-ins Triggered . | . . . . . . . . . . . . Exploration Rate (%) 56 | 7 97 46 91 79 75 53 52 85 3 81 11 Regions Visited 11 Branch Regions 5 Pre-discovered Areas 2 | . . 1 1 . . . . . . . . Known Exits Taken 7 | . 1 1 1 1 1 1 . . 1 . . Unknown Exits Taken 2 | 1 . . . . . . . 1 . . . Scrap Searched 3 | . . 1 . 2 . . . . . . . Spaces Dug . | . . . . . . . . . . . . Terrain Destroyed 285 | . 15 32 . . 82 100 13 1 . 2 40 Melee . | . . . . . . . . . . . . Projectile 37 | . . . . . 24 7 . . . 2 4 AOE 248 | . 15 32 . . 58 93 13 1 . . 36 Terrain Rammed . | . . . . . . . . . . . . Walls Destroyed . | . . . . . . . . . . . . Machines Disabled . | . . . . . . . . . . . . Actions | -11 -10 -10 -10 -9 -8 -8 -8 -8 -6 -6 -5 --------- Run | Scr Mat Min Exi Min Mat Sto Gar Rec Fac DSF Fac Total 7274 | 145 1008 349 1348 657 1022 635 471 519 147 165 808 Wait 225 | . . 2 . 35 37 139 . 1 2 2 7 Move 6161 | 119 908 324 1347 580 804 350 393 477 107 116 636 Hop . | . . . . . . . . . . . . Pick Up 135 | 9 4 1 . 7 32 13 6 5 13 12 33 Fast Attach 41 | 2 10 . . 3 11 5 1 . . 2 7 Attach 73 | 5 . . . 3 11 3 2 . 12 2 35 Detach 9 | 1 . . . 1 . . . . 5 . 2 Swap 95 | 1 15 4 . 5 22 21 14 1 4 2 6 Drop 113 | . 18 3 1 10 28 16 9 1 3 9 15 Fire 386 | 8 53 15 . 13 74 82 25 30 . 19 67 Melee 7 | . . . . . . 6 . . 1 . . Ram . | . . . . . . . . . . . . Kick 2 | . . . . . . . . 1 . 1 . Crush 3 | . . . . . 3 . . . . . . Escape Stasis 5 | . . . . . . . 5 . . . . Rewire 19 | . . . . . . . 16 3 . . . Trap . | . . . . . . . . . . . . Miscellaneous . | . . . . . . . . . . . . Route ------- -11/Scrapyard -10/Materials (discovered 4 exits: *Mat x3 / *Min) -10/Mines (discovered 2 exits: *Mat / *Exi) -10/Exiles (discovered 2 exits: *Min x2) -9/Mines (discovered 2 exits: *Mat x2) -8/Materials (discovered 4 exits: *Fac x3 / *Sto) -8/Storage (discovered 2 exits: *Fac / Gar) -8/Garrison -8/Recycling -6/Factory -6/DSF -5/Factory History --------- Turn | Location | Event 2 | -11/Scrapyard | Met Revision 17 67 | -11/Scrapyard | Discovered new exit (range 8) 121 | -11/Scrapyard | Entered Materials 340 | -10/Materials | Build established: Mutant 357 | -10/Materials | Discovered new exit (range 10) 372 | -10/Materials | Identified exit to Materials 458 | -10/Materials | Discovered new exit (range 15) 487 | -10/Materials | Identified exit to Mines 852 | -10/Materials | Build established: Scavenger-Mutant 1329 | -10/Materials | Entered Mines 1360 | -10/Mines | Received a Rocket Launcher from a helpful Derelict 1403 | -10/Mines | Build established: Mutant 1445 | -10/Mines | Discovered exit to Materials (range 14) 1536 | -10/Mines | Learned location of Recycling (-8) 1641 | -10/Mines | Deemed a non-threat by the Exiles lab entrance 1642 | -10/Mines | Discovered new exit (range 5) 1646 | -10/Mines | Identified exit to Exiles 1647 | -10/Mines | Entered Exiles 1681 | -10/Exiles | Met 8R-AWN 1698 | -10/Exiles | Met EX-HEX 1738 | -10/Exiles | Met EX-BIN 1838 | -10/Exiles | Aligned with FarCom system 1839 | -10/Exiles | Given EX-Vault access code 1922 | -10/Exiles | Build established: Scavenger-Mutant 1927 | -10/Exiles | Met EX-DEC 2273 | -10/Exiles | Visited The Gauntlet 2405 | -10/Exiles | Learned location of Zion (-7) 2453 | -10/Exiles | Discovered new exit (range 14) 2468 | -10/Exiles | Identified exit to Mines 2603 | -10/Exiles | Discovered exit to Mines (range 15) 2860 | -10/Exiles | Entered Mines 2941 | -9/Mines | Discovered new exit (range 5) 2945 | -9/Mines | Identified exit to Materials 2954 | -9/Mines | Assisted by bots powering up and referring to "LRC-V3" 3044 | -9/Mines | Discovered exit to Materials (range 11) 3209 | -9/Mines | Met a Derelict shopkeep closing up shop 3297 | -9/Mines | Learned location of 2 exits from Materials 3390 | -9/Mines | Found the Drone Emporium 3398 | -9/Mines | Found Prototype Device 3400 | -9/Mines | Identified Decoy Drone Bay 3503 | -9/Mines | Entered Materials 3503 | -8/Materials | Accompanied by 1 ally 3503 | -8/Materials | Evolved 4 slots: Power x1, Propulsion x1, Utility x1, Weapon x1 3504 | -8/Materials | Identified exit to Storage 3505 | -8/Materials | Identified exit to Factory 3850 | -8/Materials | Garrison activated, responded to threat 4100 | -8/Materials | Discovered exit to Factory (range 16) 4574 | -8/Materials | Build established: Hacker-Skirmisher 4708 | -8/Materials | Repaired Broken Med. Treads 5052 | -8/Materials | Repaired Rnf. Deuterium Engine 5163 | -8/Materials | Entered Storage 5710 | -8/Storage | Build established: Hacker-Mutant 5740 | -8/Storage | Core integrity fell below 50% 5936 | -8/Storage | Repaired Broken Rnf. Deuterium Engine 5974 | -8/Storage | Repaired Imp. Heat Sink 6179 | -8/Storage | Discovered exit to Factory (range 16) 6238 | -8/Storage | Identified exit to Garrison 6248 | -8/Storage | Entered Garrison 6325 | -8/Garrison | Triggered checkpoint 6346 | -8/Garrison | Core integrity fell below 20% 6387 | -8/Garrison | Destroyed 9 combat bots 6540 | -8/Garrison | Triggered checkpoint 6861 | -8/Garrison | Build established: Scavenger-Skirmisher 6867 | -8/Garrison | Discovered new exit (range 14) 7108 | -8/Garrison | Entered Recycling 7108 | -8/Recycling | Accompanied by 5 allies 7174 | -8/Recycling | Spotter reported a threat 7174 | -8/Recycling | Spotter reported a threat 7202 | -8/Recycling | Spotter reported a threat 7259 | -8/Recycling | Spotter reported a threat 7261 | -8/Recycling | Spotter reported a threat 7288 | -8/Recycling | Spotter reported a threat 7321 | -8/Recycling | Spotter reported a threat 7325 | -8/Recycling | Spotter reported a threat 7341 | -8/Recycling | Spotter reported a threat 7360 | -8/Recycling | Spotter reported a threat 7397 | -8/Recycling | Spotter reported a threat 7397 | -8/Recycling | Spotter reported a threat 7409 | -8/Recycling | Spotter reported a threat 7450 | -8/Recycling | Spotter reported a threat 7464 | -8/Recycling | Spotter reported a threat 7469 | -8/Recycling | Spotter reported a threat 7503 | -8/Recycling | Spotter reported a threat 7504 | -8/Recycling | Spotter reported a threat 7507 | -8/Recycling | Spotter reported a threat 7522 | -8/Recycling | Spotter reported a threat 7556 | -8/Recycling | Spotter reported a threat 7575 | -8/Recycling | Spotter reported a threat 7616 | -8/Recycling | Spotter reported a threat 7616 | -8/Recycling | Spotter reported a threat 7617 | -8/Recycling | Spotter reported a threat 7669 | -8/Recycling | Spotter reported a threat 7686 | -8/Recycling | Spotter reported a threat 7686 | -8/Recycling | Spotter reported a threat 7715 | -8/Recycling | Spotter reported a threat 7715 | -8/Recycling | Spotter reported a threat 7716 | -8/Recycling | Spotter reported a threat 7763 | -8/Recycling | Spotter reported a threat 7764 | -8/Recycling | Spotter reported a threat 7764 | -8/Recycling | Spotter reported a threat 7816 | -8/Recycling | Spotter reported a threat 7817 | -8/Recycling | Spotter reported a threat 7844 | -8/Recycling | Spotter reported a threat 7870 | -8/Recycling | Spotter reported a threat 7875 | -8/Recycling | Spotter reported a threat 7913 | -8/Recycling | Spotter reported a threat 7913 | -8/Recycling | Spotter reported a threat 7980 | -8/Recycling | Spotter reported a threat 7986 | -8/Recycling | Spotter reported a threat 7994 | -8/Recycling | Spotter reported a threat 8033 | -8/Recycling | Spotter reported a threat 8064 | -8/Recycling | Spotter reported a threat 8086 | -8/Recycling | Spotter reported a threat 8094 | -8/Recycling | Spotter reported a threat 8137 | -8/Recycling | Spotter reported a threat 8139 | -8/Recycling | Spotter reported a threat 8149 | -8/Recycling | Spotter reported a threat 8149 | -8/Recycling | Spotter reported a threat 8195 | -8/Recycling | Spotter reported a threat 8203 | -8/Recycling | Spotter reported a threat 8227 | -8/Recycling | Spotter reported a threat 8227 | -8/Recycling | Spotter reported a threat 8271 | -8/Recycling | Spotter reported a threat 8315 | -8/Recycling | Discovered new exit (range 14) 8317 | -8/Recycling | Spotter reported a threat 8317 | -8/Recycling | Spotter reported a threat 8351 | -8/Recycling | Entered Factory 8351 | -6/Factory | Evolved 4 slots: Power x1, Propulsion x1, Utility x1, Weapon x1 8364 | -6/Factory | Spotted B-75 Beast 8604 | -6/Factory | Identified exit to DSF 8606 | -6/Factory | Entered DSF 8662 | -6/DSF | Additional patrols routed to DSF 8844 | -6/DSF | Discovered new exit (range 15) 8909 | -6/DSF | Entered Factory 8909 | -5/Factory | Evolved 2 slots: Propulsion x1, Utility x1 9160 | -5/Factory | Build established: Hacker-Skirmisher 9209 | -5/Factory | Search patrols dispatched 9337 | -5/Factory | Lost 6 parts (2p2n1u1w) 9597 | -5/Factory | Core integrity fell below 50% 9625 | -5/Factory | Lost 17 parts (3p6n4u4w) 9685 | -5/Factory | Lost 3 parts (1p1n1w) 9745 | -5/Factory | Garrison activated, responded to threat 9831 | -5/Factory | Cargo convoy interrupted 9957 | -5/Factory | System corruption reached 10% 10000 | -5/Factory | Lost 7 parts (1p3n2u1w) 10104 | -5/Factory | Lost 4 parts (2n1u1w) 10178 | -5/Factory | Core integrity fell below 20% 10236 | -5/Factory | Destroyed by X-77 Beamer with Gatling Laser Last Messages --------------- Slug penetrates Wall. X-77 Beamer knocked back. X-77 Beamer Adv. VSS Leg blasted off. X-77 Beamer knocked back. Flexi-carbon Leg destroyed. ALERT: Rogue bot located, Programmers report to Factory Zone 3F. X-77 Beamer knocked back. Destroyed Adv. Particle Charger. X-77 Beamer knocked back. Gauss Rifle destroyed. X-77 Beamer knocked back. Enh. Gauss Cannon destroyed. Acquired 15 matter. System corrupted: Component data lost. Acquired Thermic Laser. K-01 Serf cleans the Megafabricator. Gravmag Array destroyed. Acquired Thermic Laser. [Achievement: 5k Club] [Achievement: 10k Club] Map ----- +----------------------------------------------------+ | ?????????????????????????????????????????????????? | | ?????????????????????????????????????????????????? | | ?????????????????????????????????????????????????? | | ?????????????????????????????????????????????????? | | ?????????????????????????????????????????????????? | | ?????????????????????????????????????????????????? | | ?????????????????????????????????????????????????? | | ?????????????????????????????????????????????????? | | ?????????????????????????????????????????????????? | | ?????????????????????????????????????????????????? | | ?????????????????????????????????????????????????? | | ????????????????????? ?????? ???????????????????? | | ????????????????????# k"""""" ????????????????? | | ????????????????????# """""" +???????????????? | | ????????????????????+ #???????????????? | | ????????????????????# #???????????????? | | ????????????????????# ^ R #???????????????? | | ????????????????????# #???????????????? | | ????????????????????# #???????????????? | | ????????????????????# #???????????????? | | ????????????????????# t #???????????????? | | ????????????????????#x k##??????????????? | | ????????????######### ?????????????? | | ????????????# % # "" ?????????????? | | ????????????# # "" ?????o??????? | | ????????????# # @! T" ????????????? | | ????????????# # ! "" ????????????? | | ????????????# # ! "" "?????????????? | | ???########## x R ! "F????????????? | | ???# # # ""????????????? | | ???#"" """ # # % ###########????????????? | | ???#"Y!""" # # uk#??????????????????????? | | ???#"" """ # # #??????????????????????? | | ???# "" # # #??????????????????????? | | ???# "" ######### # ????????????? | | ???# #??????## + ????????????? | | ???# #??????# # ????????????? | | ???# #??????#T #??? ?????????????? | | ########+############ #??????? ?????????????? | | % % #??????????????????????? | | % % #??????????????????????? | | % #??????????????????????? | | % #??????????????????????? | | #??????????????????????? | | ###+######/###########??????????????????????? | | # [ ! # #?????????????????????????? | | # ! %""# #?????????????????????????? | | # !! % ""# #?????????????????????????? | | # !%! %""# "" #?????????????????????????? | | # ] G# ! " #?????????????????????????? | +----------------------------------------------------+ Best States ------------- Heat Dissipation 59 Energy Generation 47 Energy Capacity 480 Matter Stores 300 Matter Capacity 300 Sight Range 16 Terrain Scan Density 10 Jamming Range 12 Additional Mass Support 12 Armor Coverage 225 Resistance: KI 20 Resistance: TH 20 Resistance: EX 20 Resistance: EM 20 Resistance: I 20 Resistance: S 20 Resistance: P 20 Weapon Cycling 20 Phase Shifting 5 Evasion (%) 55 Targeting Accuracy 5 Core Analysis 6 Recoil Reduction 3 Offensive Hacking 20 Authchip Count 5 Item Schematics ----------------- Gravmag System | -8/Recycling | Hacked Airjet | -8/Recycling | Hacked Target Analyzer | -8/Recycling | Hacked Cmb. Gravmag System | -5/Factory | Hacked Adv. Component Analysis Suite | -5/Factory | Hacked Adv. Energy Well | -5/Factory | Hacked Robot Schematics ------------------ A-02 Transporter | -8/Storage | Hacked Fabricated ------------ Nothing Alien Tech Used ----------------- None Achievements -------------- 10k Club 5k Club A New Friend Backstab Close Call It's Just You Made in Tau Ceti IV Party Time Please Form A Line Power Corrupts Remodeling Serviceable Loadout Storm Trooper System Compromised The More The Merrier Troublemaker Universal Adapter \\IAMDERELICT Challenges ------------ None Game ------ Seed IntegrityChipReconfigurator Manual? 0 Play Time 02:40:14 Cumulative 7.7 hours Start 2022.11.28 @ 16:17:54 End 2022.11.29 @ 20:50:15 Sessions 3 Manual Loads 0 Difficulty Adventurer Special Mode None Game No. 2 Rogue 0 Adventurer 2 Explorer 0 Win Type - Total 0 Types 0/0/0/0/0/0/0/0/0 Lore% 11 Gallery% 9 Achievement% 13 Wizard Run 0 Options --------- ASCII 0 Keyboard 0 Movement Arrows Keybinds 0 Fullscreen 2 Font 18/X11 Map View 76x50 Tactical HUD 0 Map Filters NONE Filters NONE Steam 1 RUN: edc79f8b-27f2-4127-8335-25f6634a9a0c